bitfinex/quotes_ETHUSD_20260121
["timestamp","ask_amount","ask_price","bid_price","bid_amount"]
[1769029145662,0.09838485,3032.1,3030.6,12.95005125]
[1769029145867,3.12708668,3032.0,3030.7,1.29500512]
[1769029146340,0.09838485,3032.3,3030.8,3.05102136]
[1769029146685,3.22547153,3032.7,3030.8,3.05102136]
[1769029147274,3.22547153,3032.3,3030.8,3.05102136]
[1769029147482,3.22547153,3032.3,3030.9,0.43460265]
[1769029147483,0.32254715,3032.2,3030.9,0.43460265]
[1769029147689,0.09838485,3032.5,3031.0,9.6495037]
[1769029147855,3.22547153,3032.3,3031.0,3.29924117]
[1769029148174,3.22547153,3032.3,3031.0,6.59848234]
[1769029148376,3.22547153,3032.3,3031.0,9.89772351]
[1769029148697,0.09838485,3032.2,3031.1,1.33833475]
[1769029148891,3.22547153,3032.2,3030.9,3.29930206]
[1769029149056,3.22547153,3032.2,3030.9,6.59865208]
[1769029149256,3.396016,3032.5,3031.0,0.65986521]
[1769029149257,0.32254715,3032.1,3031.0,0.65986521]
[1769029149479,0.09838485,3032.5,3031.0,0.65986521]
[1769029149699,0.09838485,3032.3,3031.1,3.29913232]
[1769029150009,0.09838485,3032.2,3031.1,3.29913232]
[1769029150393,0.09838485,3032.2,3031.1,6.59826464]
[1769029150706,3.22547153,3032.9,3031.2,0.72581298]
[1769029150919,3.22547153,3032.9,3031.2,3.77683434]
[1769029151411,3.12708668,3032.9,3031.2,3.77683434]
[1769029151718,3.12708668,3032.9,3031.3,6.5978293]
[1769029151719,0.09838485,3032.7,3031.3,6.5978293]
[1769029151895,0.09838485,3031.9,3030.9,3.29927936]
[1769029152071,3.22547153,3032.1,3030.6,3.84464024]
[1769029152405,3.22547153,3032.1,3031.2,3.298964]
[1769029152705,3.22547153,3032.1,3030.9,3.29933677]
[1769029152909,3.55785717,3032.1,3031.0,0.32993368]
[1769029153112,3.55785717,3032.1,3031.1,3.29907597]
[1769029153412,0.09838485,3031.9,3030.6,6.8956513]
[1769029153574,0.09838485,3031.9,3031.0,3.29918902]
[1769029153778,0.09838485,3031.9,3030.7,6.5991355]
[1769029154114,0.09838485,3031.9,3030.7,7.28870063]
[1769029154529,3.55785717,3032.1,3030.7,7.28870063]
[1769029155111,0.09838485,3031.7,3030.7,3.98913288]
[1769029155317,0.09838485,3031.7,3030.8,0.78337787]
[1769029155640,0.09838485,3032.1,3030.8,0.78337787]
[1769029155847,0.09838485,3032.1,3030.9,6.59870004]
[1769029156814,0.002,3031.9,3030.9,6.59870004]
[1769029157017,0.002,3031.9,3030.9,3.29935002]
[1769029157353,0.002,3031.9,3030.6,0.545]
[1769029157354,3.22547153,3031.6,3030.6,0.545]
[1769029157926,3.22547153,3031.0,3029.9,3.30043665]
[1769029158251,0.09838485,3031.4,3030.3,3.29998659]
[1769029158439,0.09838485,3031.6,3030.5,3.29973135]
[1769029158643,0.09838485,3031.2,3029.9,3.05102136]
[1769029158856,0.09838485,3031.0,3029.5,3.05102136]
[1769029159059,0.09838485,3030.8,3029.6,0.68969664]
[1769029159275,0.09838485,3030.2,3028.7,3.05102136]
[1769029159428,0.09838485,3030.6,3029.0,3.05102136]
[1769029159629,0.09838485,3031.0,3029.6,6.60153154]
[1769029159948,0.09838485,3030.8,3029.7,3.9607277]
[1769029160269,0.09838485,3030.5,3029.5,3.3008724]
[1769029160730,0.09838485,3030.5,3029.7,3.30055959]
[1769029160931,0.09838485,3030.5,3029.6,3.3007524]
[1769029161137,0.09838485,3030.5,3029.7,0.33007524]
[1769029161471,0.09838485,3030.3,3028.9,3.05102136]
[1769029161630,0.09838485,3030.3,3029.2,3.05102136]
[1769029161841,0.09838485,3030.3,3029.5,3.30083086]
[1769029162450,0.09838485,3030.3,3029.3,3.30109266]
[1769029162743,0.09838485,3030.3,3029.4,0.6352114]
[1769029163534,0.09838485,3030.1,3029.4,0.6352114]
[1769029164166,0.09838485,3030.1,3028.8,3.05102136]
[1769029164167,0.09838485,3029.9,3028.8,3.05102136]
[1769029164534,0.09838485,3030.1,3028.9,6.6030572]
[1769029164730,0.09838485,3030.3,3028.9,6.6030572]
[1769029164731,0.09838485,3030.3,3029.0,3.05102136]
[1769029165160,0.09838485,3030.1,3029.0,3.05102136]
[1769029165447,0.09838485,3030.1,3029.1,0.96540786]
[1769029166352,0.09838485,3030.5,3029.2,3.05102136]
[1769029166535,0.09838485,3030.5,3029.3,6.60218532]
[1769029166734,0.09838485,3030.3,3029.3,3.30109266]
[1769029167068,0.09838485,3030.3,3029.3,6.60218532]
[1769029167272,0.09838485,3030.1,3029.1,0.96540786]
[1769029167442,0.09838485,3029.9,3029.0,3.30136105]
[1769029167766,0.09838485,3029.9,3029.0,3.30134454]
[1769029168142,0.09838485,3029.9,3029.1,3.30130196]
[1769029168464,0.09838485,3029.9,3028.9,6.6030572]
[1769029168639,3.22547153,3030.3,3029.0,3.05102136]
[1769029168640,0.09838485,3030.3,3029.0,3.05102136]
[1769029168836,0.09838485,3030.3,3029.1,4.34658208]
[1769029169665,0.09838485,3030.3,3029.5,0.001]
[1769029169865,0.09838485,3030.1,3029.5,0.001]
[1769029170337,0.09838485,3030.1,3029.1,1.29556072]
[1769029170338,0.09838485,3029.9,3029.1,1.29556072]
[1769029170534,0.09838485,3030.1,3029.2,3.30120163]
[1769029170739,0.09838485,3030.1,3029.3,0.45967624]
[1769029171451,0.2335703,3030.4,3029.3,0.45967624]
[1769029171765,0.09838485,3030.3,3029.3,0.45967624]
[1769029172668,4.13813595,3031.2,3029.4,4.01921853]
[1769029173078,0.09838485,3031.2,3029.4,4.01921853]
[1769029173942,0.09838485,3030.9,3029.4,4.01921853]
[1769029174143,0.09838485,3030.9,3029.6,4.01921853]
[1769029174682,0.09838485,3030.9,3029.7,6.60131366]
[1769029175168,0.09838485,3030.5,3029.7,3.30065683]
[1769029175367,0.09838485,3030.5,3029.6,3.30072036]
[1769029175870,4.0397511,3031.3,3029.7,4.01921853]
[1769029176064,0.2335703,3031.2,3029.7,4.01921853]
[1769029176265,0.33195515,3031.2,3029.7,4.01921853]
[1769029176671,0.33195515,3031.2,3029.8,6.60109578]
[1769029176872,0.43717063,3031.1,3029.9,1.06203143]
[1769029177878,0.43717063,3031.1,3030.0,4.01921853]
[1769029178087,0.09838485,3031.2,3030.0,4.01921853]
[1769029178266,4.13813595,3031.6,3030.0,4.01921853]
[1769029178582,4.13813595,3031.4,3030.0,4.01921853]
[1769029178747,4.13813595,3031.4,3030.1,9.90066333]
[1769029179079,4.56178803,3031.4,3030.2,1.39198819]
[1769029179287,0.42365208,3031.4,3030.2,5.41120672]
[1769029179492,0.09838485,3031.6,3030.2,5.41120672]
[1769029180574,0.09838485,3031.8,3030.3,4.01921853]
[1769029180751,0.09838485,3031.8,3030.5,4.01921853]
[1769029181153,0.09838485,3031.8,3030.4,6.5997888]
[1769029181154,0.09838485,3031.6,3030.4,3.2998944]
[1769029181376,0.09838485,3031.4,3030.4,3.2998944]
[1769029181566,0.002,3031.9,3030.5,4.01921853]
[1769029181567,0.10038485,3031.9,3030.5,4.01921853]
[1769029181765,0.09838485,3031.7,3030.5,4.01921853]
[1769029182251,0.09838485,3031.5,3030.4,3.2998944]
[1769029182449,0.09838485,3031.3,3030.3,3.2999504]
[1769029182683,0.09838485,3031.1,3030.0,3.30031498]
[1769029182885,0.52403693,3031.1,3030.1,0.73530335]
[1769029184278,0.09838485,3030.7,3029.9,0.0335]
[1769029184493,4.0397511,3030.6,3029.9,0.0335]
[1769029184784,0.09838485,3030.5,3029.9,0.0335]
[1769029185013,0.09838485,3030.3,3029.9,0.0335]
[1769029185277,0.09838485,3030.7,3029.9,0.0335]
[1769029185784,0.44800448,3030.7,3029.9,0.0335]
[1769029185954,0.09838485,3030.7,3029.9,0.0335]
[1769029186298,0.42565208,3031.1,3029.9,3.33393895]
[1769029186505,0.002,3031.1,3029.9,7.1793779]
[1769029186654,3.30114723,3031.1,3029.9,3.87893895]
[1769029186851,4.0417511,3031.1,3030.0,0.78981575]
[1769029187363,0.002,3031.1,3030.0,0.78981575]
[1769029187664,0.09838485,3031.0,3030.0,0.78981575]
[1769029188109,0.09838485,3031.0,3029.9,0.5785]
[1769029188593,0.09838485,3031.0,3029.9,3.87888197]
[1769029188964,0.09838485,3031.0,3029.9,3.8789192]
[1769029189499,0.09838485,3031.0,3029.9,0.5785]
[1769029189500,3.3976787,3031.0,3029.9,0.5785]
[1769029189669,7.4374298,3031.0,3029.9,0.5785]
[1769029189858,7.4374298,3031.0,3029.9,0.0335]
[1769029189859,0.09838485,3030.8,3029.9,0.0335]
[1769029190192,4.13813595,3030.8,3029.9,0.0335]
[1769029190365,4.13813595,3030.6,3029.9,0.0335]
[1769029191389,4.13813595,3030.6,3029.2,4.01921853]
[1769029191390,4.13813595,3030.4,3029.2,3.30114438]
[1769029191574,4.13813595,3030.2,3029.2,0.66025303]
[1769029191757,4.13813595,3030.2,3028.8,0.545]
[1769029191758,4.13813595,3030.2,3029.0,3.30138321]
[1769029191958,4.13813595,3030.2,3029.0,3.3013542]
[1769029192186,4.13813595,3030.2,3028.8,4.56421853]
[1769029192187,0.09838485,3030.0,3028.8,4.56421853]
[1769029192387,0.45519495,3030.1,3028.9,0.45642185]
[1769029192594,3.39806831,3030.6,3029.4,3.30090863]
[1769029192956,0.09838485,3030.6,3029.4,3.30090863]
[1769029193176,3.39809831,3030.6,3029.4,3.30090863]
[1769029193494,7.43784941,3030.6,3029.3,7.3202576]
[1769029193677,1.09710565,3030.5,3029.3,7.3202576]
[1769029193986,4.13813595,3030.6,3029.3,10.62135026]
[1769029194191,7.43785057,3030.6,3029.3,7.3202576]
[1769029194370,3.39809947,3030.6,3029.3,7.3202576]
[1769029194570,0.09838485,3030.2,3029.0,4.01921853]
[1769029194770,0.52203693,3030.2,3029.2,3.30114669]
[1769029194975,0.09838485,3030.0,3028.8,0.545]
[1769029195189,0.09838485,3030.0,3028.7,4.01921853]
[1769029195401,7.12236129,3030.2,3029.2,4.01921853]
[1769029195402,0.42365208,3030.2,3029.2,4.01921853]
[1769029195561,4.0397511,3030.1,3028.6,3.30179909]
[1769029195761,4.0397511,3030.1,3029.0,3.30134324]
[1769029196063,4.0397511,3030.1,3028.6,4.01921853]
[1769029196296,4.13813595,3029.9,3028.7,3.30169406]
[1769029196495,0.002,3030.8,3029.2,4.01921853]
[1769029196703,0.09838485,3030.7,3029.3,5.08140251]
[1769029196865,4.0397511,3030.4,3029.3,4.36323963]
[1769029197072,0.73395516,3030.3,3029.3,4.36323963]
[1769029197408,0.09838485,3030.7,3029.3,4.36323963]
[1769029197409,3.30152626,3030.8,3029.4,4.01921853]
[1769029197711,10.64080362,3030.8,3029.4,4.01921853]
[1769029197998,7.34127736,3030.8,3029.4,4.01921853]
[1769029198171,0.002,3030.8,3029.4,4.01921853]
[1769029198360,3.29810077,3032.1,3029.3,7.66913229]
[1769029198361,3.30026639,3031.9,3030.8,0.09838485]
[1769029198564,0.002,3031.9,3030.7,0.09838485]
[1769029198809,0.002,3031.9,3030.9,0.07089692]
[1769029199300,0.002,3031.9,3030.3,0.545]
[1769029199301,4.65908313,3031.9,3030.3,0.545]
[1769029199464,5.12299144,3031.8,3030.5,3.29970383]
[1769029199662,0.46590831,3031.8,3030.8,0.09838485]
[1769029199863,0.002,3032.2,3031.4,0.09838485]
[1769029200092,0.002,3032.2,3031.2,4.62446691]
[1769029200294,0.002,3032.2,3031.4,4.62446691]
[1769029200507,0.002,3032.2,3031.0,0.09838485]
[1769029200508,0.002,3032.2,3031.0,4.62446691]
[1769029200716,0.002,3032.2,3031.1,1.12231507]
[1769029201072,0.002,3032.2,3031.2,3.39735497]
[1769029201275,0.002,3032.2,3031.2,0.09838485]
[1769029201480,0.002,3032.2,3031.2,3.39740363]
[1769029202007,0.002,3032.2,3031.2,6.69642711]
[1769029202183,0.002,3032.2,3031.3,0.66964271]
[1769029202367,0.002,3032.2,3030.6,0.09838485]
[1769029202368,4.69335343,3032.0,3030.5,4.46030171]
[1769029202571,4.69335343,3032.0,3030.5,3.29971603]
[1769029203180,4.69335343,3031.9,3031.2,0.0178]
[1769029204224,4.69335343,3031.9,3030.3,0.545]
[1769029204509,6.05590556,3031.8,3030.5,3.29973001]
[1769029204718,4.92692373,3031.8,3030.6,3.29967409]
[1769029205079,4.92692373,3031.8,3030.5,3.29974079]
[1769029205279,4.92692373,3031.8,3030.4,6.5997888]
[1769029205514,11.52366557,3031.8,3030.3,3.84497898]
[1769029206089,8.22529465,3031.8,3030.3,3.84497898]
[1769029206292,4.92692373,3031.6,3030.3,0.545]
[1769029206773,4.92892373,3031.6,3029.9,3.30040212]
[1769029207011,4.92892373,3031.6,3030.0,3.30029905]
[1769029207225,4.92692373,3031.4,3029.7,4.46130171]
[1769029207525,4.92692373,3031.2,3029.7,0.001]
[1769029209213,0.2335703,3030.7,3029.7,0.001]
[1769029209915,4.92692373,3030.7,3029.7,0.0057]
[1769029210285,4.92692373,3030.7,3029.1,3.30123235]
[1769029210587,4.92692373,3030.5,3029.1,4.40752953]
[1769029210779,4.92692373,3030.5,3029.2,3.30117875]
[1769029211305,3.2998944,3030.4,3029.1,4.40753167]
[1769029211509,7.99324783,3030.4,3029.1,4.40753167]
[1769029211710,1.15266429,3030.3,3029.2,0.44075317]
[1769029211897,0.2335703,3030.2,3028.5,4.46030171]
[1769029212107,0.2335703,3030.0,3028.5,4.46030171]
[1769029212442,4.69335343,3030.0,3028.5,4.46030171]
[1769029212726,4.69335343,3030.0,3027.6,0.09838485]
[1769029212727,5.16268877,3029.9,3027.6,4.46030171]
[1769029212896,5.16268877,3029.9,3027.9,3.30257115]
[1769029213539,4.69335343,3029.7,3027.7,6.60564665]
[1769029213737,4.69335343,3029.4,3027.6,3.30292453]
[1769029213919,4.69335343,3029.2,3027.6,3.63321698]
[1769029214320,0.2335703,3029.1,3027.6,3.63321698]
[1769029214637,4.92692373,3029.1,3027.6,0.33029245]
[1769029214835,4.92692373,3029.1,3027.1,3.30348179]
[1769029215079,4.69335343,3028.6,3027.1,3.30348179]
[1769029215198,4.48935343,3028.6,3027.0,0.545]
[1769029215541,4.69335343,3028.5,3027.1,3.30346121]
[1769029215704,5.14228877,3028.5,3027.2,0.38484612]
[1769029216126,0.2335703,3028.4,3026.9,0.001]
[1769029216301,0.2335703,3028.4,3027.1,3.30341807]
[1769029216501,0.2335703,3028.4,3026.9,3.30469331]
[1769029216502,0.2335703,3028.4,3027.0,3.30355346]
[1769029217099,4.92692373,3028.4,3026.9,0.001]
[1769029217305,4.79173828,3028.2,3026.9,0.001]
[1769029217515,6.6050198,3028.0,3026.9,0.001]
[1769029217714,7.99586333,3028.0,3026.9,0.001]
[1769029219332,11.29837323,3028.0,3026.9,0.001]
[1769029219532,7.99586333,3028.0,3027.4,0.001]
[1769029219733,5.87109733,3027.9,3027.4,0.001]
[1769029220422,4.92692373,3027.7,3026.9,0.001]
[1769029220625,4.92692373,3027.7,3026.1,3.30450888]
[1769029220626,4.69335343,3027.5,3026.1,3.30450888]
[1769029220854,4.79173828,3027.3,3026.1,3.30454087]
[1769029221151,4.79173828,3027.3,3025.0,3.30574449]
[1769029221152,0.546,3027.3,3026.2,3.30437984]
[1769029221655,4.79173828,3027.2,3025.9,3.30477226]
[1769029221856,4.79173828,3027.2,3026.0,0.33047723]
[1769029221857,0.09838485,3027.0,3026.0,0.33047723]
[1769029222017,0.09838485,3027.0,3025.7,3.30494693]
[1769029222222,4.79173828,3027.0,3025.4,4.46030171]
[1769029222443,0.09838485,3026.7,3025.6,3.30506707]
[1769029222616,0.09838485,3026.7,3025.7,0.33050671]
[1769029222820,0.09838485,3026.7,3025.4,3.30528121]
[1769029222821,0.09838485,3026.7,3025.5,3.30520025]
[1769029223052,0.09838485,3026.7,3025.6,3.30506833]
[1769029223240,0.09838485,3026.7,3024.9,3.3068672]
[1769029223241,0.09838485,3026.7,3025.7,3.30501538]
[1769029223444,4.79173828,3027.0,3025.8,3.30489209]
[1769029223634,0.47917383,3026.9,3025.1,4.46030171]
[1769029223817,0.47917383,3026.9,3024.9,3.3068672]
[1769029223818,3.78288648,3026.9,3025.2,14.37697667]
[1769029224023,0.09838485,3026.8,3025.3,4.46030171]
[1769029225746,0.09838485,3026.8,3025.4,6.6106961]
[1769029229380,0.09838485,3026.8,3025.4,11.07099781]
[1769029229583,0.96568678,3026.8,3025.6,6.61025912]
[1769029230261,8.96288258,3026.8,3025.5,4.4123067]
[1769029230459,4.69335343,3026.3,3024.9,0.001]
[1769029230647,4.69335343,3026.3,3025.1,3.30559416]
[1769029230648,0.09838485,3026.2,3025.1,3.30559416]
[1769029230971,0.57755868,3026.2,3025.1,3.30559416]
[1769029231170,0.57755868,3026.2,3024.9,3.30686348]
[1769029231171,5.6314194,3026.2,3024.9,0.001]
[1769029231372,5.15224557,3025.9,3024.9,0.001]
[1769029231559,8.35877181,3025.8,3024.9,0.001]
[1769029231758,5.05386072,3025.8,3024.9,0.001]
[1769029232442,5.15224557,3025.8,3024.9,0.001]
[1769029232637,6.23006252,3025.7,3024.5,3.30633162]
[1769029232872,6.23006252,3025.7,3023.4,5.07487747]
[1769029232873,0.09838485,3024.8,3023.4,5.07487747]
[1769029233046,0.09838485,3024.5,3023.4,5.07487747]
[1769029233241,0.09838485,3024.3,3023.5,1.23616446]
[1769029233643,0.09838485,3024.1,3023.5,1.23616446]
[1769029234055,0.09838485,3024.1,3023.3,3.30762231]
[1769029234255,0.09838485,3024.1,3023.5,3.30739917]
[1769029234968,3.4043074,3024.9,3023.5,3.30739917]
[1769029234969,0.09838485,3024.6,3023.6,5.07487747]
[1769029235283,0.09838485,3024.4,3023.7,1.16897018]
[1769029236180,0.09838485,3024.0,3023.2,8.38254826]
[1769029236353,0.09838485,3024.2,3023.2,3.30765073]
[1769029236354,0.09838485,3023.9,3023.2,3.30765073]
[1769029236556,0.09838485,3023.9,3023.3,3.30757158]
[1769029236754,0.09838485,3024.2,3023.5,3.30740931]
[1769029236980,0.09838485,3024.6,3023.6,8.38217878]
[1769029237284,0.09838485,3024.4,3023.6,8.38214892]
[1769029237651,0.09838485,3024.4,3023.7,3.30719209]
[1769029238081,0.09838485,3024.9,3023.8,5.07487747]
[1769029238289,0.09838485,3025.1,3023.8,5.07487747]
[1769029238597,0.09838485,3024.9,3024.0,5.07487747]
[1769029239300,0.09838485,3025.1,3024.0,5.07487747]
[1769029239855,0.09838485,3025.1,3024.1,6.6135379]
[1769029240051,0.09838485,3025.1,3024.2,1.16884154]
[1769029240474,0.09838485,3025.1,3024.0,5.07487747]
[1769029240475,0.09838485,3024.7,3024.0,3.30687451]
[1769029240673,0.09838485,3024.5,3023.9,3.30695706]
[1769029240903,0.09838485,3024.5,3024.0,0.33069571]
[1769029240904,0.09838485,3024.3,3024.0,0.33069571]
[1769029241170,0.09838485,3024.5,3023.7,3.30712087]
[1769029241409,0.09838485,3024.5,3023.6,0.546]
[1769029241410,0.09838485,3024.3,3023.6,0.546]
[1769029241595,0.09838485,3024.3,3023.7,3.30714232]
[1769029241803,0.09838485,3024.3,3023.7,0.71604771]
[1769029241972,0.09838485,3024.1,3023.6,3.85326208]
[1769029242168,0.09838485,3024.1,3023.6,0.546]
[1769029242385,0.09838485,3024.5,3023.7,3.30718928]
[1769029242586,0.09838485,3024.3,3023.7,3.30718928]
[1769029242780,0.09838485,3024.3,3023.7,0.71605907]
[1769029243185,0.09838485,3024.3,3023.7,4.02325982]
[1769029243394,0.09838485,3024.3,3023.7,0.71605907]
[1769029243678,0.002,3024.1,3023.7,0.71605907]
[1769029244396,0.002,3024.1,3023.6,0.546]
[1769029244597,0.002,3024.1,3023.3,3.30758424]
[1769029244774,0.002,3024.1,3023.3,3.30763628]
[1769029244974,0.002,3024.1,3023.4,3.30745197]
[1769029245172,0.002,3024.1,3023.2,8.38254076]
[1769029245173,0.002,3024.1,3023.3,3.30759005]
[1769029245418,0.002,3024.1,3022.9,5.07487747]
[1769029245419,0.09838485,3023.6,3022.9,5.07487747]
[1769029245606,0.002,3024.1,3023.0,5.07487747]
[1769029246213,0.002,3024.1,3023.1,6.61572556]
[1769029246374,0.002,3024.1,3023.2,1.1690603]
[1769029246811,0.002,3024.1,3023.2,6.24393777]
[1769029247870,0.002,3024.1,3023.2,1.1690603]
[1769029247871,0.09838485,3024.0,3023.2,1.1690603]
[1769029248105,0.09838485,3024.0,3023.3,3.30764396]
[1769029248305,0.002,3024.1,3023.3,3.30764396]
[1769029248885,0.09838485,3024.0,3023.2,3.3077272]
[1769029249318,0.09838485,3024.0,3023.2,6.61548057]
[1769029249490,0.09838485,3024.0,3023.3,0.66154806]
[1769029250084,0.002,3024.4,3023.6,5.07487747]
[1769029250282,0.09838485,3025.2,3023.6,5.07487747]
[1769029250483,0.62344789,3025.2,3023.8,5.07487747]
[1769029251202,0.09838485,3025.0,3023.8,5.07487747]
[1769029251576,0.62344789,3025.2,3023.8,5.07487747]
[1769029251784,0.62344789,3025.2,3023.9,0.65745928]
[1769029252484,0.09838485,3025.0,3024.0,6.6137566]
[1769029252905,0.09838485,3025.0,3024.0,3.3068783]
[1769029253922,0.09838485,3025.0,3023.8,5.07487747]
[1769029253923,0.09838485,3024.6,3023.8,3.30702971]
[1769029254224,0.09838485,3024.6,3023.9,3.30696695]
[1769029254521,0.09838485,3024.4,3023.5,3.30742516]
[1769029254681,0.09838485,3024.2,3023.5,4.21181023]
[1769029255012,0.09838485,3024.2,3023.5,3.30742516]
[1769029255257,0.09838485,3024.8,3023.6,5.07487747]
[1769029255430,8.98296835,3025.2,3023.6,5.07487747]
[1769029255629,8.98296835,3025.2,3024.3,0.001]
[1769029255630,4.31234663,3025.0,3024.3,0.001]
[1769029255956,0.002,3024.7,3024.3,0.001]
[1769029260562,0.002,3025.7,3024.4,5.75386104]
[1769029260859,0.002,3025.7,3024.6,5.75386104]
[1769029261263,0.002,3025.7,3024.7,15.50680329]
[1769029261473,0.002,3025.7,3024.7,12.20069029]
[1769029261839,0.09838485,3025.6,3024.7,6.612226]
[1769029262041,0.09838485,3025.6,3024.8,0.6612226]
[1769029262042,0.09838485,3025.4,3024.8,0.6612226]
[1769029262282,0.09838485,3025.4,3023.9,3.30694766]
[1769029262283,0.09838485,3024.2,3023.0,5.58846429]
[1769029262429,0.09838485,3024.2,3023.1,5.58846429]
[1769029262628,0.09838485,3024.5,3023.1,5.58846429]
[1769029262835,0.09838485,3024.9,3023.7,6.61440784]
[1769029263034,0.09838485,3024.9,3023.8,0.66144078]
[1769029263332,0.09838485,3024.9,3022.8,3.85413175]
[1769029263333,0.09838485,3023.9,3022.6,5.58846429]
[1769029263533,0.09838485,3023.7,3022.5,5.58846429]
[1769029263745,0.09838485,3023.7,3022.6,3.30839671]
[1769029263943,0.09838485,3023.7,3022.7,4.197916]
[1769029264353,0.09838485,3023.7,3022.7,0.8896861]
[1769029264841,0.09838485,3023.5,3022.7,0.8896861]
[1769029265035,0.09838485,3023.2,3022.0,5.58846429]
[1769029265235,0.09838485,3022.8,3021.7,0.546]
[1769029265569,3.40658154,3022.8,3021.7,0.546]
[1769029266066,3.40658154,3022.8,3021.4,5.58846429]
[1769029266067,6.71477823,3022.8,3021.4,5.58846429]
[1769029266259,0.09838485,3022.6,3021.5,1.43581894]
[1769029266875,0.67147782,3022.7,3021.5,6.47828323]
[1769029267168,0.09838485,3022.8,3021.5,6.47828323]
[1769029267365,0.09838485,3022.8,3021.6,3.30950489]
[1769029267677,0.09838485,3022.4,3021.5,0.88981894]
[1769029267896,0.09838485,3022.6,3021.5,3.30956383]
[1769029268193,0.09838485,3022.0,3020.3,5.58846429]
[1769029268354,6.71488255,3022.8,3020.8,8.89879683]
[1769029268355,0.09838485,3022.1,3020.8,8.89879683]
[1769029268555,0.09838485,3022.0,3020.8,5.58846429]
[1769029268899,0.09838485,3022.0,3020.8,8.89881826]
[1769029269057,0.09838485,3022.3,3021.0,5.58846429]
[1769029269256,0.09838485,3022.1,3021.0,5.58846429]
[1769029269589,0.09838485,3022.3,3021.2,5.58846429]
[1769029269763,0.09838485,3022.1,3020.9,0.88988183]
[1769029269968,0.09838485,3022.1,3020.9,4.20008458]
[1769029270287,0.09838485,3021.9,3021.0,0.97885489]
[1769029271479,0.09838485,3022.1,3021.0,4.2889958]
[1769029271669,0.09838485,3022.3,3021.0,7.59915799]
[1769029271884,0.09838485,3022.3,3021.1,5.58846429]
[1769029272267,0.09838485,3021.9,3021.0,0.97885489]
[1769029272491,0.09838485,3021.9,3020.7,5.58846429]
[1769029272492,0.09838485,3021.7,3020.7,5.58846429]
[1769029272691,0.09838485,3021.7,3020.8,3.31038054]
[1769029272893,0.09838485,3021.7,3020.8,3.31035382]
[1769029273091,0.09838485,3021.7,3020.9,3.31022951]
[1769029273390,0.09838485,3022.1,3020.7,5.58846429]
[1769029273689,0.09838485,3022.2,3020.9,5.58846429]
[1769029275398,0.09838485,3022.2,3021.0,6.62032438]
[1769029275582,0.09838485,3022.2,3021.1,5.58846429]
[1769029275893,3.40694847,3022.5,3021.1,5.58846429]
[1769029275894,0.09838485,3022.5,3021.1,5.58846429]
[1769029276062,0.09838485,3022.3,3021.2,6.80934316]
[1769029276258,0.09838485,3022.3,3021.3,0.03309833]
[1769029277165,0.09838485,3022.3,3021.3,5.62156262]
[1769029277600,3.40660249,3022.8,3021.3,5.62156262]
[1769029277601,0.09838485,3022.6,3021.5,5.58846429]
[1769029277810,0.09838485,3022.6,3021.4,6.61944792]
[1769029277811,0.09838485,3022.8,3021.6,5.62155933]
[1769029278019,0.09838485,3022.8,3021.7,6.15062022]
[1769029278312,0.09838485,3022.6,3021.7,6.15062022]
[1769029278522,0.09838485,3022.8,3021.7,6.15062022]
[1769029278726,0.09838485,3023.9,3021.7,6.15062022]
[1769029279197,0.09838485,3024.4,3022.3,5.58846429]
[1769029279613,0.09838485,3024.4,3022.2,0.128]
[1769029279614,0.09838485,3024.4,3022.5,5.58846429]
[1769029280329,0.09838485,3024.4,3022.7,5.58846429]
[1769029280534,0.09838485,3024.4,3022.6,0.547]
[1769029280535,0.09838485,3024.4,3022.9,5.58846429]
[1769029281648,0.09838485,3024.6,3023.1,5.58846429]
[1769029281853,0.002,3024.7,3023.1,5.58846429]
[1769029284333,0.002,3024.7,3023.3,5.58846429]
[1769029286327,0.002,3024.7,3023.4,6.61506912]
[1769029286498,0.002,3024.7,3023.5,6.2499712]
[1769029286701,0.002,3024.7,3022.6,0.547]
[1769029286702,0.09838485,3023.4,3022.5,8.89691969]
[1769029286900,0.09838485,3023.4,3022.5,8.89696636]
[1769029286901,0.09838485,3023.2,3022.5,8.89696636]
[1769029287132,0.09838485,3023.4,3022.6,0.88969664]
[1769029288129,16.62788646,3024.9,3022.6,6.47816093]
[1769029288130,5.3002815,3024.7,3022.6,6.47816093]
[1769029288334,0.09838485,3024.2,3022.7,6.61660104]
[1769029288508,3.40489955,3024.4,3022.8,5.58846429]
[1769029288713,0.09838485,3024.2,3022.8,5.58846429]
[1769029288908,0.44871329,3024.2,3023.0,5.58846429]
[1769029290366,3.4065252,3024.7,3023.2,5.58846429]
[1769029290521,0.09838485,3024.5,3023.2,6.13546429]
[1769029291463,0.002,3024.4,3023.2,6.13546429]
[1769029292417,0.002,3024.4,3023.4,6.02389167]
[1769029292739,0.002,3024.4,3023.6,6.02389167]
[1769029294442,0.002,3024.4,3023.7,12.63830447]
[1769029294620,0.002,3024.4,3023.7,6.02389167]
[1769029294823,0.002,3024.4,3023.5,3.30737077]
[1769029295217,0.002,3024.4,3023.6,3.3072812]
[1769029295840,0.09838485,3024.0,3023.2,3.30770927]
[1769029296042,0.09838485,3024.2,3023.3,3.30759697]
[1769029296319,0.002,3024.4,3023.3,6.02389167]
[1769029296520,0.002,3024.4,3023.3,9.33149382]
[1769029296718,0.33083316,3024.3,3023.3,9.33149382]
[1769029297253,0.002,3024.4,3023.4,6.02389167]
[1769029297619,0.002,3024.4,3023.6,6.02389167]
[1769029298635,0.002,3024.7,3023.9,6.02389167]
[1769029300623,0.002,3024.7,3024.0,3.3068783]
[1769029301569,0.002,3024.7,3024.0,6.6137566]
[1769029301724,0.002,3024.7,3024.1,7.2876565]
[1769029301924,0.002,3024.7,3023.0,6.02389167]
[1769029301925,0.09838485,3024.2,3023.0,6.02389167]
[1769029302251,0.09838485,3024.4,3023.2,6.02389167]
[1769029302453,0.09838485,3024.4,3022.7,3.85522469]
[1769029302454,0.09838485,3024.0,3022.8,6.02389167]
[1769029302653,3.4052777,3024.0,3022.9,3.30807883]
[1769029302852,3.4052777,3024.0,3022.8,9.33206431]
[1769029303059,0.34052777,3023.9,3022.8,10.65080907]
[1769029303553,0.34052777,3023.9,3022.8,4.6269174]
[1769029303760,0.34052777,3023.9,3022.9,6.02389167]
[1769029304050,0.10038485,3024.4,3022.9,6.02389167]
[1769029304051,6.71339167,3024.4,3022.9,6.02389167]
[1769029304354,0.09838485,3024.2,3022.9,6.02389167]
[1769029304534,0.09838485,3024.0,3022.8,3.30817264]
[1769029304859,3.40530836,3024.0,3022.8,3.30817264]
[1769029305152,0.34053084,3023.9,3022.8,4.02451823]
[1769029305371,0.34053084,3023.9,3022.8,0.71634559]
[1769029305575,0.34053084,3023.9,3022.7,0.547]
[1769029305792,0.09838485,3023.8,3022.7,0.547]
[1769029307147,0.09838485,3023.8,3022.7,3.85529791]